fUSD/lending_fUSD_20240212
["ID","MTS","AMOUNT","RATE_DAILY","PERIOD"]
[313891854,1707773448682,-15002.5959523,0.00031,2]
[313891858,1707773448705,-2510.6,0.00031,2]
[313891862,1707773448736,-2638.0,0.00031,2]
[313891919,1707773716756,-152.17,0.00022888,2]
[313891920,1707773716777,-734.86,0.00022893,2]
[313891921,1707773716798,-715.49,0.00022893,2]
[313891922,1707773716821,-2795.51605946,0.00022893,2]
[313891923,1707773716841,-2598.31156981,0.00022894,2]
[313891924,1707773716868,-732.98,0.00022894,2]
[313891925,1707773716889,-6473.53214918,0.00022894,2]
[313891926,1707773716909,-735.3,0.00022895,2]
[313891927,1707773716929,-300.0,0.00022895,2]
[313891928,1707773716950,-150.0,0.00022895,2]
[313891929,1707773716970,-734.95,0.00022895,2]
[313891930,1707773716991,-723.45,0.00022896,2]
[313891931,1707773717012,-1757.8879,0.00022896,2]
[313891932,1707773717034,-711.29,0.00022896,2]
[313891933,1707773717054,-738.44,0.00022896,2]
[313891934,1707773717073,-726.85,0.00022896,2]
[313891935,1707773717093,-737.79,0.00022896,2]
[313891936,1707773717113,-151.18,0.00022929,2]
[313891937,1707773717133,-610.57725012,0.00022934,2]
[313891938,1707773717153,-731.81,0.00022972,2]
[313891939,1707773717173,-996.23374444,0.00022995,2]
[313891940,1707773854485,-2976.2579,0.00022796,2]
[313891941,1707773854510,-726.58,0.00022796,2]
[313891942,1707773854531,-712.92,0.00022796,2]
[313891943,1707773854551,-717.55,0.00022796,2]
[313891944,1707773854572,-721.47,0.00022892,2]
[313891945,1707773854592,-724.43,0.00022977,2]
[313891946,1707773859798,716.63,0.00022796,2]
[313891947,1707774225728,-150.71,0.000233,2]
[313891948,1707774225749,-187.0,0.00023305,2]
[313891949,1707774225769,-722.36,0.00023313,2]
[313891950,1707774225791,-726.99,0.00023318,2]
[313891951,1707774225811,-718.03,0.00023326,2]
[313891952,1707774225831,-727.43,0.00023336,2]
[313891953,1707774225851,-729.85,0.00023352,2]
[313891954,1707774225875,-715.72,0.00023375,2]
[313891955,1707774225894,-727.99,0.00023408,2]
[313891956,1707774225915,-736.71,0.00023457,2]
[313891957,1707774225935,-722.44,0.00023496,2]
[313891958,1707774225956,-731.46,0.00023545,2]
[313891959,1707774225977,-736.9,0.00023606,2]
[313891960,1707774225998,-729.66,0.00023683,2]
[313891961,1707774226018,-6661.84,0.00023683,2]
[313891962,1707774226041,-712.13,0.00023783,2]
[313891963,1707774226063,-728.61,0.00023905,2]
[313891964,1707774226084,-721.24,0.00024061,2]
[313891965,1707774226105,-731.5,0.00024254,2]
[313891966,1707774226126,-150.0,0.00024572,2]
[313891967,1707774226146,-169.29,0.00024573,2]
[313891968,1707774226165,-6424.37,0.00024573,2]
[313891969,1707774226185,-499.99,0.00024573,2]
[313891970,1707774226205,-1047.62,0.00024715,2]
[313891971,1707774226226,-187.0,0.00024949,2]
[313891972,1707774226246,-537.14851635,0.00025,2]
[313891973,1707774226266,-1000.0,0.00026,2]
[313891974,1707774226290,-161.09713959,0.00026245,2]
[313891975,1707774226310,-731.49315966,0.00026345,2]
[313891976,1707774226330,-530.18,0.00026348,2]
[313891977,1707774226350,-187.0,0.00026593,2]
[313891978,1707774226373,-161.0971395,0.00026984,2]
[313891979,1707774226394,-250.0,0.00026991,2]
[313891980,1707774226413,-155.0,0.00027542,2]
[313891981,1707774226433,-250.0,0.00027692,2]
[313891982,1707774226453,-161.0971395,0.00027724,2]
[313891983,1707774265442,-537.14851635,0.00025,2]
[313891984,1707774265462,-187.0,0.00028237,2]
[313891985,1707774265483,-184.62,0.00028455,2]
[313891986,1707774265505,-709.91,0.00028459,2]
[313891987,1707774265526,-161.0971395,0.00028463,2]
[313891988,1707774265545,-408.91276088,0.0002854,2]
[313891989,1707774265566,-501.43734414,0.00028541,2]
[313891990,1707774265586,-15501.09457152,0.00028542,2]
[313892018,1707774632307,-537.14851635,0.00025,2]
[313892020,1707774632316,-13916.64463215,0.00028166,2]
[313892022,1707774632328,-1080.41077486,0.00028166,2]
[313892028,1707774632376,-255.51450015,0.00028166,2]
[313892039,1707774632496,-5472.19014788,0.00028166,2]
[313892040,1707774632818,-8543.01813511,0.00028166,2]
[313892041,1707774632832,-161.0971395,0.00028442,2]
[313892042,1707774632841,-410.0,0.000285,2]
[313892043,1707774632850,-9449.28785343,0.00028542,2]
[313892044,1707774632863,-2309.39576069,0.00028542,2]
[313892045,1707774632875,-301.48244901,0.00028542,2]
[313892046,1707774632884,-200.0,0.00028542,2]
[313892047,1707774632894,-550.61358106,0.00028542,2]
[313892048,1707774632903,-772.81,0.00028542,2]
[313892049,1707774632912,-159.88197936,0.00028547,2]
[313892050,1707774632935,-90.11802064,0.00028547,2]
[313892051,1707774632944,-530.18,0.00028612,2]
[313892052,1707774632954,-1000.0,0.000288,2]
[313892053,1707774632963,-920.0,0.00028832,2]
[313892054,1707774632972,-3445.14339735,0.00028857,2]
[313892055,1707774632984,-172.62596873,0.00028857,2]
[313892056,1707774632993,-4701.2827193,0.00028858,2]
[313892057,1707774635518,-2108.78726605,0.00028858,2]
[313892058,1707774635531,-17089.93001465,0.00028858,2]
[313892059,1707774635541,-503.84,0.00028858,2]
[313892060,1707774635551,-200.0,0.00028858,2]
[313892061,1707774635561,-221.36,0.00028858,2]
[313892062,1707774635570,-250.0,0.00028858,2]
[313892063,1707774635580,-7676.76247037,0.00028858,2]
[313892064,1707774635601,-1639.42304312,0.00028858,2]
[313892107,1707774638390,-3371.32448651,0.00028858,2]
[313892108,1707774638400,-155.0,0.00028912,2]
[313892109,1707774638410,-154.84,0.00029074,2]
[313892110,1707774638419,-4276.10886875,0.00029085,2]
[313892111,1707774638428,-438.07901086,0.00029085,2]
[313892112,1707774638438,-200.0,0.00029131,2]
[313892113,1707774638447,-200.0,0.00029157,2]
[313892114,1707774638457,-154.84,0.00029158,2]
[313892115,1707774638466,-153.85,0.00029188,2]
[313892116,1707774638475,-308.93811035,0.00029192,6]
[313892117,1707774638485,-2944.49,0.00029192,2]
[313892118,1707774638495,-547.39964969,0.00029209,2]
[313892119,1707774638504,-154.84,0.00029243,2]
[313892120,1707774638514,-862.02,0.0002929,10]
[313892121,1707774638523,-1184.60924784,0.000293,2]
[313892123,1707774638859,-2524.39075216,0.000293,2]
[313892124,1707774638868,-161.0971395,0.00029309,2]
[313892125,1707774638878,-154.84,0.00029327,2]
[313892126,1707774638887,-3209.72,0.00029367,2]
[313892127,1707774638895,-154.84,0.00029411,2]
[313892128,1707774638905,-154.84,0.00029495,2]
[313892129,1707774638915,-154.84,0.00029579,2]
[313892130,1707774638924,-189.13,0.00029648,120]
[313892131,1707774638933,-154.84,0.00029663,2]
[313892132,1707774638942,-265.46511979,0.00029741,2]
[313892133,1707774638952,-680.94500515,0.00029742,2]
[313892134,1707774638961,-2196.58271688,0.00029745,2]
[313892138,1707774640934,-1297.5,0.00029745,2]
[313892139,1707774641062,-10026.7,0.00029745,2]
[313892177,1707774643498,-4428.53435729,0.00029745,2]
[313892179,1707774643510,-26637.5184994,0.00029745,2]
[313892181,1707774643519,-23442.4815006,0.00029747,2]
[313892200,1707774643678,-1000.65732,0.00029747,2]
[313892223,1707774646328,-5720.9252866,0.00029747,2]
[313892228,1707774646952,-14422.77146637,0.00029747,2]
[313892229,1707774646961,-154.84,0.00029748,2]
[313892230,1707774646971,-6771.57780654,0.00029751,2]
[313892231,1707774646981,-9573.94988203,0.00029751,2]
[313892232,1707774647026,-426.05011797,0.00029751,2]
[313892233,1707774647035,-680.94500515,0.00029754,2]
[313892234,1707774647045,-6771.57780654,0.0002976,2]
[313892235,1707774647054,-6771.57780654,0.00029767,2]
[313892236,1707774647064,-680.94500515,0.00029777,2]
[313892237,1707774647074,-265.46511979,0.00029786,2]
[313892238,1707774647083,-265.46511979,0.00029789,2]
[313892239,1707774647093,-14224.66911512,0.00029796,2]
[313892240,1707774647108,-550.61358106,0.00028542,2]
[313892241,1707774647118,-4729.98641894,0.00029796,2]
[313892242,1707774647130,-2639.29999999,0.00029796,2]
[313892243,1707774647142,-350.05,0.00029796,2]
[313892244,1707774647153,-1950.7190066,0.00029796,2]
[313892245,1707774679727,3322.61332204,0.00021,2]
[313892246,1707774681863,948.15113857,9e-05,2]
[313892247,1707774693178,537.78336467,0.0001,2]
[313892248,1707774693965,942.86026248,0.00022,2]
[313892249,1707774696030,321.08343763,0.0002,2]
[313892250,1707774697810,8000.0,0.00011,2]
[313892251,1707774715185,33338.5271013,6.94e-05,2]
[313892252,1707774789122,201.18832144,0.0002,7]
[313892253,1707774806194,256.70459311,0.00021897,2]
[313892254,1707774808615,177.24,0.000219,2]
[313892255,1707774814916,258.48,0.00021897,2]
[313892256,1707774816193,258.48,0.00022034,2]
[313892257,1707774817459,258.48,0.00022171,2]
[313892258,1707774819241,258.48,0.00022308,2]
[313892260,1707774847402,53530.08953904,0.0002,2]
[313892261,1707774851667,731.49315966,0.00021,2]
[313892262,1707774882437,200.38440148,0.00022346,2]
[313892263,1707774887435,200.38440147,0.0002237,2]
[313892264,1707774892428,200.38440147,0.00022394,2]
[313892265,1707774913902,15501.1,0.00021852,2]
[313892266,1707774919713,200.0,0.00021778,2]
[313892267,1707774961547,557.28087708,0.00022394,2]
[313892268,1707774961573,2437.37408032,0.00022394,2]
[313892269,1707774961596,732.81227608,0.00022394,2]
[313892270,1707774975059,1102.72886404,0.00022394,2]
[313892271,1707774975556,839.12664866,0.00022394,2]
[313892272,1707774975579,281.03292041,0.00022394,2]
[313892273,1707774978198,-10000.0,0.00022413,2]
[313892274,1707774992972,1102.72886404,0.00022394,2]
[313892275,1707774994249,-1957.34969805,0.00022411,2]
[313892276,1707774994272,-363.59759485,0.00022412,2]
[313892277,1707774994293,-4594.83096539,0.00022412,2]
[313892278,1707774994314,-315.93907995,0.00022412,2]
[313892279,1707774994335,-553.48847873,0.00022413,2]
[313892280,1707774994355,-2214.79418303,0.00022413,2]
[313892281,1707775010169,-5473.18204554,0.00022411,2]
[313892282,1707775010193,-14526.81795446,0.00022413,2]
[313892283,1707775011009,1102.72886404,0.00022394,2]
[313892284,1707775013975,188.17714029,0.00022298,2]
[313892285,1707775013997,828.63195971,0.00022298,2]
[313892286,1707775025268,-150.0,0.00022412,2]
[313892287,1707775025293,-16785.65562668,0.00022413,2]
[313892288,1707775025316,-64.34437332,0.00022413,2]
[313892289,1707775032953,1237.63846391,0.00022298,2]
[313892290,1707775040560,150.0,0.000219,2]
[313892291,1707775042988,-409.44210918,0.00022417,2]
[313892292,1707775043013,-498.0042777,0.00022417,2]
[313892293,1707775043036,-200.38440147,0.00022418,2]
[313892294,1707775043057,-200.38440147,0.00022442,2]
[313892295,1707775043078,-258.48,0.00022445,2]
[313892296,1707775043100,-354.2,0.00022448,2]
[313892297,1707775043125,-79.10481018,0.00022465,2]
[313892298,1707775064043,230.36,0.00021956,2]
[313892299,1707775064855,228.03736516,0.00022016,2]
[313892300,1707775064879,2.32263484,0.00022016,2]
[313892301,1707775064913,230.36,0.00022076,2]
[313892302,1707775064970,230.36,0.00022136,2]
[313892303,1707775065399,230.36,0.00022197,2]
[313892304,1707775065450,230.36,0.00022257,2]
[313892305,1707775065519,230.36,0.00022317,2]
[313892306,1707775065744,230.36,0.00022377,2]
[313892307,1707775066579,1047.62,0.00021967,2]
[313892308,1707775082634,200.0,0.00021758,2]
[313892309,1707775107985,42.56515394,0.00021918,2]
[313892310,1707775108007,207.43484606,0.00021918,2]
[313892311,1707775136316,250.0,0.00021749,2]
[313892312,1707775144671,183.23,0.00021749,2]
[313892313,1707775169785,155.0,0.00021746,2]
[313892314,1707775216390,1879.00294272,0.00021754,2]
[313892315,1707775216414,2674.66778878,0.00021754,2]
[313892316,1707775216437,2674.66778878,0.00021754,2]
[313892317,1707775216460,2674.66778878,0.00021754,2]
[313892318,1707775216482,2674.66778878,0.00021754,2]
[313892319,1707775216506,11322.32590216,0.00021754,2]
[313892320,1707775234412,200.0,0.00021759,2]
[313892321,1707775269737,539.07,0.0001985,2]
[313892322,1707775269957,539.07,0.00022114,2]
[313892323,1707775326691,156.42,0.00021757,2]
[313892324,1707775334088,162.1523967,0.00021735,2]
[313892325,1707775341609,641.31,0.00021762,2]
[313892326,1707775354848,1280.41,0.00021762,2]
[313892327,1707775368135,353.91,0.00021764,2]
[313892328,1707775377908,200.0,0.00021764,2]
[313892329,1707775385306,4350.67,0.00021918,2]
[313892330,1707775440652,196.33,0.00021759,2]
[313892331,1707775441848,150.0,0.00021899,2]
[313892332,1707775447904,258.48,0.00021899,2]
[313892333,1707775449188,514.26,0.00022036,2]
[313892334,1707775504689,2000.0,0.00021717,2]
[313892335,1707775508040,200.0,0.00021764,2]
[313892336,1707775534081,153.57,0.00021956,2]
[313892337,1707775534300,153.57,0.00022023,2]
[313892338,1707775534533,153.57,0.0002209,2]
[313892339,1707775534735,153.57,0.00022158,2]
[313892340,1707775534943,153.57,0.00022225,2]
[313892341,1707775535201,153.57,0.00022292,2]
[313892342,1707775535411,153.57,0.0002236,2]
[313892343,1707775568339,169.84,0.00021764,2]
[313892344,1707775589669,557.28087708,0.00021764,2]
[313892345,1707775611982,150.0,0.00021685,2]
[313892346,1707775613199,731.49315966,0.00021,2]
[313892347,1707775637822,500.0,0.0002168,2]
[313892348,1707775642166,250.0,0.00021757,2]
[313892349,1707775644133,300.0,0.000223,8]
[313892350,1707775646206,700.0,0.000224,8]
[313892351,1707775648295,1100.0,0.000225,8]
[313892352,1707775650410,1500.0,0.000226,8]
[313892353,1707775652130,-5473.18204554,0.00022422,2]
[313892354,1707775652149,-1957.34969805,0.00022423,2]
[313892355,1707775652169,-315.93907995,0.00022423,2]
[313892356,1707775652188,-363.59759485,0.00022424,2]
[313892357,1707775652207,-10553.48847873,0.00022424,2]
[313892358,1707775652226,-4594.83096539,0.00022424,2]
[313892359,1707775652246,-17708.31457481,0.00022425,2]
[313892360,1707775652266,-153.57,0.00022427,2]
[313892361,1707775652286,-121.27959129,0.00022465,2]
[313892362,1707775652307,-200.38440147,0.00022489,2]
[313892363,1707775652329,-153.57,0.00022494,2]
[313892364,1707775652350,-200.38440147,0.00022513,2]
[313892365,1707775652370,-200.38440147,0.00022537,2]
[313892366,1707775652390,-6661.84,0.00022537,2]
[313892367,1707775652410,-200.38440147,0.00022561,2]
[313892368,1707775652431,-153.57,0.00022561,2]
[313892369,1707775652450,-457.63,0.00022561,2]
[313892370,1707775652469,-858.85,0.00022561,2]
[313892371,1707775652488,-364.93309978,0.00022581,2]
[313892372,1707775652507,-499.99,0.00022582,2]
[313892373,1707775652527,-1486.19,0.00022582,2]
[313892374,1707775652549,-200.38440147,0.00022585,2]
[313892375,1707775652568,-6424.37,0.00022585,2]
[313892376,1707775652587,-150.99,0.00022585,2]
[313892377,1707775652607,-1057.06,0.00022585,2]
[313892378,1707775652627,-19721.5218,0.00022604,2]
[313892379,1707775652647,-200.38440147,0.00022609,2]
[313892380,1707775652668,-153.57,0.00022629,2]
[313892381,1707775652687,-200.38440147,0.00022633,2]
[313892382,1707775652707,-200.38440147,0.00022657,2]
[313892383,1707775652726,-438.51876595,0.00022668,2]
[313892384,1707775652744,-13892.5918612,0.0002267,2]
[313892385,1707775652955,1900.0,0.000227,8]
[313892386,1707775654609,300.0,0.000228,8]
[313892387,1707775656729,300.0,0.000229,8]
[313892388,1707775715897,150.0044,0.00022324,2]
[313892389,1707775723898,23900.0,0.00021837,2]
[313892390,1707775733263,523.03,0.00019914,2]
[313892391,1707775733474,523.03,0.00022178,2]
[313892392,1707775751594,237.31,0.00021832,2]
[313892403,1707775781054,1000.0,0.00021866,2]
[313892412,1707775825274,391.21,0.00021866,2]
[313892428,1707775831558,-578.8885869,0.00022669,2]
[313892429,1707775831571,-547.9993307,0.00022669,2]
[313892430,1707775833970,-78.15673841,0.00022669,2]
[313892431,1707775833980,-362.47836471,0.00022669,2]
[313892432,1707775833989,-324.54546726,0.00022669,2]
[313892433,1707775834001,-467.8057218,0.00022669,2]
[313892434,1707775834013,-64.48894538,0.00022669,2]
[313892435,1707775834023,-350.55006865,0.00022669,2]
[313892436,1707775834051,-650.79101409,0.00022669,2]
[313892437,1707775834087,-2976.37854123,0.00022669,2]
[313892438,1707775834096,-236.62212807,0.00022669,2]
[313892439,1707775834108,-73.78910366,0.00022669,2]
[313892440,1707775834117,-153.57,0.00022696,2]
[313892441,1707775834126,-499.99,0.00022752,2]
[313892442,1707775834135,-153.57,0.00022763,2]
[313892444,1707775834144,-152.64318861,0.00022786,2]
[313892445,1707775834154,-3791.30681439,0.00022795,2]
[313892447,1707775834163,-806.4304289,0.00022796,2]
[313892449,1707775834172,-4860.8536,0.00022797,2]
[313892451,1707775834181,-1056.0172,0.00022799,2]
[313892453,1707775834190,-2431.8521,0.00022799,2]
[313892455,1707775834199,-11722.4755043,0.00022799,2]
[313892457,1707775834208,-396.22090719,0.00022799,2]
[313892459,1707775834217,-165.56669244,0.00022799,2]
[313892462,1707775834226,-729.86619954,0.00022799,2]
[313892463,1707775834235,-396.22090716,0.00022799,2]
[313892465,1707775834245,-396.22090716,0.000228,2]
[313892467,1707775834254,-396.22090716,0.000228,2]
[313892469,1707775834264,-396.22090716,0.000228,2]
[313892472,1707775834274,-210.84696252,0.000228,2]
[313892474,1707775834283,-2151.68584964,0.000228,2]
[313892476,1707775834292,-153.57,0.00022831,2]
[313892478,1707775834302,-187.14142257,0.00022889,2]
[313892480,1707775834311,-697.96516303,0.00022896,2]
[313892482,1707775834320,-420.26024116,0.00022896,3]
[313892484,1707775834330,-153.57,0.00022898,2]
[313892486,1707775834339,-562.61765638,0.00022898,3]
[313892488,1707775834351,-41394.19,0.00022899,2]
[313892490,1707775834361,-150.0,0.00022899,2]
[313892492,1707775834371,-150.0,0.00022899,2]
[313892494,1707775834380,-242.85775935,0.00022899,2]
[313892495,1707775834390,-150.0,0.00022899,2]
[313892496,1707775834400,-1062395.69671419,0.00022899,2]
[313892497,1707775834409,-500.0,0.00022899,2]
[313892498,1707775834419,-500.0,0.00022899,2]
[313892499,1707775834430,-500.0,0.00022899,2]
[313892500,1707775834440,-500.0,0.00022899,2]
[313892501,1707775834449,-177.06222362,0.00022899,2]
[313892503,1707775834458,-814590.0401301,0.000229,2]
[313892514,1707775837476,-1563.86930286,0.000229,2]
[313892515,1707775837534,-848.26710872,0.000229,2]
[313892516,1707775837591,-419.56714723,0.000229,2]
[313892517,1707775837648,-3347.16,0.000229,2]
[313892518,1707775837705,-766860.8215444,0.000229,2]
[313892519,1707775837714,-2490975.16557887,0.000229,3]
[313892520,1707775837817,-263.04,0.000229,3]
[313892533,1707775840083,-5225.0,0.000229,3]
[313892534,1707775840140,-4989.4,0.000229,3]
[313892535,1707775840152,-693.10050329,0.000229,3]
[313892558,1707775842628,-197.92021074,0.00022899,2]
[313892559,1707775842638,-873.13043442,0.000229,3]
[313892560,1707775842651,-2990.56335541,0.000229,3]
[313892561,1707775842662,-362.17347171,0.000229,3]
[313892562,1707775842685,-918.46934881,0.000229,3]
[313892563,1707775842697,-5439.0266185,0.000229,3]
[313892564,1707775842708,-5951.22626238,0.000229,3]
[313892565,1707775842744,-4786.84303492,0.000229,3]
[313892879,1707775845935,-3891.6523145,0.000229,3]
[313892890,1707775846028,-24967.21513664,0.000229,3]
[313892893,1707775846045,-255559.84765361,0.000229,3]
[313892895,1707775846056,-3000.0,0.000229,3]
[313892897,1707775846067,-862.13068794,0.000229,3]
[313892900,1707775846079,-665.7765725,0.000229,3]
[313892904,1707775846109,-102190.83826787,0.000229,3]
[313892906,1707775846124,-8996.48001662,0.000229,3]
[313892994,1707775868503,252.34797546,0.000222,2]
[313893023,1707775931434,184.26,0.00022208,2]
[313893024,1707775949494,2000.0,0.00021955,2]
[313893025,1707775955285,200.0,0.00021938,2]
[313893133,1707776012859,222.22,0.00021924,2]
[313893134,1707776019705,169.84,0.00021918,2]
[313893135,1707776077039,150.0,0.000219,2]
[313893136,1707776080802,177.24,0.00022,2]
[313893137,1707776087596,502.11641,0.00022,2]
[313893138,1707776090004,258.48,0.000219,2]
[313893139,1707776091299,258.48,0.00022037,2]
[313893140,1707776092544,258.48,0.00022174,2]
[313893141,1707776093827,258.48,0.00022311,2]
[313893142,1707776107401,154.89,0.00022056,2]
[313893143,1707776107629,154.89,0.00022116,2]
[313893144,1707776107833,154.89,0.00022177,2]
[313893145,1707776108064,154.89,0.00022237,2]
[313893146,1707776108535,154.89,0.00022298,2]
[313893147,1707776108694,154.89,0.00022358,2]
[313893148,1707776177871,23900.0,0.00021808,2]
[313893149,1707776179329,203.22520032,0.00022378,2]
[313893150,1707776221928,200.0,0.00022266,2]
[313893151,1707776280514,470.72,0.00019978,2]
[313893152,1707776280733,470.72,0.00022242,2]
[313893153,1707776314213,326.0,0.00021781,2]
[313893154,1707776319049,200.0,0.00021781,2]
[313893155,1707776319546,15501.1,0.00021918,2]
[313893156,1707776373283,250.0,0.00021918,2]
[313893157,1707776411461,1352.44,0.00021781,2]
[313893158,1707776465599,200.0,0.00021781,2]
[313893159,1707776494351,196.33,0.00021918,2]
[313893160,1707776509616,222.22,0.00021918,2]
[313893161,1707776588619,150.0,0.00021999,2]
[313893162,1707776591034,150.0,0.00021999,2]
[313893163,1707776595203,150.0,0.00021999,2]
[313893164,1707776678120,154.89,0.00021944,2]
[313893165,1707776678558,154.89,0.00022032,2]
[313893166,1707776678598,154.89,0.0002212,2]
[313893167,1707776678804,154.89,0.00022208,2]
[313893168,1707776678990,154.89,0.00022296,2]
[313893169,1707776679198,154.89,0.00022384,2]
[313893170,1707776711398,256.70459311,0.000219,2]
[313893171,1707776714225,177.24,0.00022,2]
[313893172,1707776720558,258.48,0.00021797,2]
[313893173,1707776721896,515.31,0.00021934,2]
[313893174,1707776746454,423.64,0.00019867,2]
[313893175,1707776746655,423.64,0.00022131,2]
[313893176,1707776777576,271.66,0.00021782,2]
[313893177,1707776818194,250.0,0.00021918,2]
[313893178,1707776828109,-150.0,0.00022427,2]
[313893179,1707776828129,-534.81337932,0.00022427,2]
[313893180,1707776828149,-4723.06431297,0.00022427,2]
[313893181,1707776828169,-311.79750185,0.00022428,2]
[313893182,1707776828188,-3347.25710792,0.00022428,2]
[313893183,1707776828208,-3045.88772392,0.00022428,2]
[313893184,1707776828228,-584.06170021,0.00022429,2]
[313893185,1707776828248,-20551.3587401,0.00022432,2]
[313893186,1707776828269,-154.89,0.00022472,2]
[313893187,1707776828288,-7055.16648995,0.00022477,2]
[313893188,1707776828307,-1144.37805503,0.00022512,2]
[313893189,1707776828326,-150.0,0.00022547,2]
[313893190,1707776828346,-224.99,0.00022547,3]
[313893191,1707776828365,-499.99,0.00022548,2]
[313893192,1707776828384,-1635.74,0.00022548,2]
[313893193,1707776828404,-354.24,0.00022548,2]
[313893194,1707776828424,-154.89,0.0002256,2]
[313893195,1707776828443,-757.92,0.000226,2]
[313893196,1707776828463,-154.89,0.00022648,2]
[313893197,1707776828484,-451.99249993,0.00022661,2]
[313893198,1707776828505,-495.94273594,0.00022668,2]
[313893199,1707776828528,-206.49035234,0.0002267,2]
[313893200,1707776828547,-1500.0,0.00022686,2]
[313893201,1707776828567,-12936.8835,0.00022697,2]
[313893202,1707776828586,-3590.8986,0.00022697,2]
[313893203,1707776828607,-150.0,0.00022699,2]
[313893204,1707776828630,-150.0,0.000227,2]
[313893205,1707776828655,-154.89,0.00022736,2]
[313893206,1707776828675,-723.63,0.0002278,2]
[313893207,1707776828695,-3081.4698,0.00022797,2]
[313893208,1707776828714,-2961.7,0.00022797,2]
[313893209,1707776828733,-5831.0014,0.00022797,2]
[313893210,1707776828752,-2862.1853,0.00022797,2]
[313893211,1707776828772,-705.62662527,0.00022798,2]
[313893212,1707776828792,-7601.2354,0.000228,2]
[313893213,1707776828811,-2717.7911,0.000228,2]
[313893214,1707776828830,-2336.1162,0.000228,2]
[313893215,1707776828853,-10745.60254559,0.000228,2]
[313893216,1707776828872,-152.15491724,0.00022807,2]
[313893217,1707776828893,-1500.0,0.00022808,2]
[313893218,1707776828914,-154.89,0.00022824,2]
[313893219,1707776828935,-150.0,0.00022851,2]
[313893220,1707776828956,-150.0,0.00022857,2]
[313893221,1707776828975,-722.61,0.00022879,2]
[313893222,1707776828994,-278.5556153,0.00022895,2]
[313893223,1707776829013,-208.37575458,0.00022895,2]
[313893224,1707776829032,-206.42756783,0.00022895,2]
[313893225,1707776829051,-315.93907995,0.00022895,2]
[313893226,1707776829070,-2331.62604922,0.00022896,2]
[313893227,1707776829090,-42018.76179988,0.00022897,2]
[313893228,1707776833084,-2488.34972956,0.00022426,2]
[313893229,1707776833104,-29310.47245572,0.00022897,2]
[313893230,1707776835072,-21426.71116266,0.00022897,2]
[313893231,1707776846098,-409.52802942,0.00022896,2]
[313893232,1707776846118,-2073.3477859,0.00022896,2]
[313893233,1707776846138,-712.12,0.00022897,2]
[313893234,1707776846158,-132794.64032278,0.00022897,2]
[313893235,1707776848245,1949.40584078,0.00022209,2]
[313893236,1707776869552,23900.0,0.00021781,2]
[313893246,1707776954090,-183.23,0.00022698,2]
[313893247,1707776954111,-163.17654031,0.00022795,2]
[313893248,1707776954132,-163.1765402,0.00022813,2]
[313893249,1707776954153,-163.1765402,0.0002283,2]
[313893250,1707776954173,-735.04,0.00022838,2]
[313893251,1707776954193,-163.1765402,0.00022848,2]
[313893252,1707776954213,-163.1765402,0.00022865,2]
[313893253,1707776954233,-163.1765402,0.00022883,2]
[313893254,1707776954253,-734.02,0.00022883,2]
[313893255,1707776954273,-2781.27437517,0.00022895,2]
[313893256,1707776954292,-446.96558352,0.00022895,2]
[313893287,1707777031682,-150.0,0.0002267,2]